bitfinex-derivatives/quotes_ETHF0:USTF0_20250530
["timestamp","ask_amount","ask_price","bid_price","bid_amount"]
[1748612181663,1.2773,2584.4,2584.1,3.2078]
[1748612181857,1.2773,2584.4,2584.3,0.77368]
[1748612182259,0.00579845,2584.5,2584.1,3.2078]
[1748612182455,0.00579845,2584.5,2584.3,0.77367]
[1748612182456,0.77942845,2584.5,2584.3,0.77367]
[1748612182860,0.77368,2584.3,2584.2,5.532]
[1748612183163,0.77371,2584.2,2584.1,8.7398]
[1748612183356,2.11451,2584.2,2584.1,8.7398]
[1748612183563,1.3408,2584.2,2584.1,8.7398]
[1748612183764,0.00579845,2584.5,2584.4,0.77365]
[1748612184065,0.00579845,2584.5,2584.4,3.98145]
[1748612184258,0.77368,2584.3,2584.2,3.2078]
[1748612184456,0.77368,2584.3,2584.2,8.7398]
[1748612184655,0.77377,2584.0,2583.9,3.21359845]
[1748612184858,0.00579845,2584.5,2583.9,3.21359845]
[1748612185060,2.03252845,2584.5,2584.3,0.77368]
[1748612185365,0.00579845,2584.5,2584.4,0.77365]
[1748612185565,0.00579845,2584.5,2584.4,2.08095]
[1748612185858,0.00579845,2584.5,2584.2,3.2078]
[1748612186163,0.00579845,2584.5,2584.0,0.77376]
[1748612186458,1.25889845,2584.5,2583.9,3.21359845]
[1748612186664,0.77374,2584.1,2584.0,0.77376]
[1748612186863,1.25889845,2584.5,2583.9,3.21359845]
[1748612187257,1.25889845,2584.5,2584.0,0.77376]
[1748612187464,0.77373,2584.2,2583.9,3.21359845]
[1748612187664,0.77371,2584.3,2584.1,0.77372]
[1748612187861,0.77377,2584.0,2583.9,3.98739845]
[1748612188062,0.77377,2584.0,2583.9,3.21359845]
[1748612188267,0.77377,2584.0,2583.9,0.00579845]
[1748612188566,4.5295,2584.2,2583.7,0.77384]
[1748612188769,0.77378,2584.0,2583.9,0.77379]
[1748612189066,0.62959845,2584.5,2583.8,5.533]
[1748612189270,0.00579845,2584.5,2584.4,3.2078]
[1748612189458,0.00579845,2584.5,2584.4,3.98145]
[1748612190163,0.77356,2584.7,2584.4,4.4546]
[1748612190361,1.93372,2585.0,2584.4,4.4546]
[1748612190663,0.77369,2584.3,2584.1,3.2078]
[1748612190860,0.7736,2584.6,2584.1,8.7408]
[1748612191059,0.00579845,2584.6,2584.2,1.2468]
[1748612191262,0.00579845,2584.6,2584.5,0.77362]
[1748612191770,0.00579845,2584.6,2584.5,2.13102]
[1748612192159,0.77371,2584.2,2584.1,0.00579845]
[1748612192362,0.77365,2584.5,2584.1,0.00579845]
[1748612192662,0.77371,2584.2,2584.1,2.13691845]
[1748612192864,1.3068,2584.5,2584.2,0.77369]
[1748612193064,0.96707,2584.4,2584.3,3.98148]
[1748612193366,0.1934,2584.4,2584.3,3.98148]
[1748612193566,0.1934,2584.4,2584.1,0.77953845]
[1748612193865,1.3068,2584.3,2584.2,0.77371]
[1748612194071,0.1934,2584.4,2584.3,0.77368]
[1748612194263,0.1934,2584.4,2584.3,9.51448]
[1748612194464,0.1934,2584.4,2584.3,14.51448]
[1748612194668,0.1934,2584.4,2584.3,9.51448]
[1748612196271,0.96705,2584.4,2584.3,3.2078]
[1748612197166,0.1934,2584.4,2584.3,3.98148]
[1748612197371,0.96705,2584.4,2584.3,3.98148]
[1748612197670,0.1934,2584.4,2584.3,3.98148]
[1748612197869,1.3112,2584.5,2584.3,3.98148]
[1748612197870,0.00579845,2584.6,2584.5,0.77362]
[1748612198172,0.77339,2585.3,2584.9,1.93376]
[1748612198471,0.77344,2585.1,2585.0,5.533]
[1748612199175,0.77344,2585.2,2585.1,0.77344]
[1748612199367,0.77344,2585.1,2585.0,0.77344]
[1748612199666,1.29009845,2585.3,2584.9,3.2078]
[1748612199863,0.1934,2585.2,2584.9,3.2078]
[1748612200063,1.93361,2585.1,2584.7,5.533]
[1748612200264,0.77359,2584.6,2584.5,3.2078]
[1748612200464,1.3311,2585.0,2584.5,3.2078]
[1748612200673,0.77359,2584.6,2584.5,3.2078]
[1748612201072,1.3311,2585.0,2584.5,3.2078]
[1748612201367,0.77371,2584.2,2584.1,0.00579845]
[1748612202067,2.10481,2584.2,2584.1,0.00579845]
[1748612202667,1.3311,2584.2,2584.1,0.77953845]
[1748612202870,5.14173,2584.7,2584.1,0.00579845]
[1748612203067,1.3311,2584.6,2584.5,0.77362]
[1748612203375,3.98127,2585.0,2584.9,0.7735]
[1748612203570,3.2078,2585.0,2584.9,0.7735]
[1748612204171,3.98127,2585.0,2584.9,0.7735]
[1748612204372,0.77348,2585.0,2584.8,0.77352]
[1748612204576,0.1934,2585.2,2584.6,3.2078]
[1748612204877,1.2624,2585.1,2584.6,3.2078]
[1748612205070,0.77352,2584.9,2584.7,0.77353]
[1748612205367,0.77352,2584.9,2584.6,3.2078]
[1748612205368,0.77354,2584.8,2584.6,3.2078]
[1748612205672,0.1934,2585.2,2584.6,3.2078]
[1748612205974,0.77345,2585.1,2584.6,5.14175]
[1748612206171,0.1934,2585.2,2584.7,1.93391]
[1748612206372,0.96682,2585.2,2585.1,0.77344]
[1748612206671,0.1934,2585.2,2585.1,5.535]
[1748612206873,0.96681,2585.2,2585.1,5.535]
[1748612207067,3.86604,2585.9,2585.1,5.535]
[1748612207068,3.2078,2585.9,2585.1,13.7428]
[1748612207264,3.86468,2586.9,2585.1,13.7428]
[1748612207265,0.77327,2585.7,2585.4,3.2078]
[1748612207464,1.93278,2586.3,2584.9,41.59025]
[1748612207465,1.93331,2585.5,2584.9,38.998]
[1748612207772,5.14094,2585.8,2585.0,5.14146]
[1748612208068,3.2078,2585.8,2585.3,3.2078]
[1748612208274,0.77332,2585.5,2585.4,5.535]
[1748612208570,0.00579845,2585.7,2585.4,5.535]
[1748612208778,3.98112,2585.5,2585.4,5.535]
[1748612209068,0.77364,2584.5,2584.2,0.6409]
[1748612209265,3.2078,2585.0,2584.9,0.7735]
[1748612209464,4.5105,2585.4,2584.9,5.535]
[1748612209668,3.2078,2585.4,2585.3,0.77338]
[1748612210065,0.00579845,2585.7,2585.3,0.77338]
[1748612210066,0.00579845,2585.7,2585.3,3.2078]
[1748612210271,0.00579845,2585.7,2585.4,5.535]
[1748612210571,0.7733,2585.6,2585.5,0.7733]
[1748612210769,0.00579845,2585.7,2585.6,0.77329]
[1748612210970,0.77907845,2585.7,2585.4,5.535]
[1748612211169,0.77907845,2585.7,2585.6,0.77329]
[1748612211370,0.00579845,2585.7,2585.4,5.535]
[1748612211776,0.00579845,2585.7,2585.6,0.77329]
[1748612211976,0.77315,2586.1,2585.6,3.2078]
[1748612212176,5.1399,2587.2,2586.4,0.77305]
[1748612212371,3.2078,2587.2,2586.6,0.77299]
[1748612212671,0.77295,2586.8,2586.7,5.535]
[1748612212874,3.2078,2587.2,2586.7,5.535]
[1748612212875,0.00579845,2587.0,2586.7,5.535]
[1748612213071,0.77293,2586.8,2586.7,5.535]
[1748612214165,0.77293,2586.8,2586.5,0.00579845]
[1748612214166,0.00579845,2587.0,2586.5,5.54079845]
[1748612214371,0.77294,2586.8,2586.6,0.77299]
[1748612214571,0.77291,2586.9,2586.6,3.2078]
[1748612214775,0.08310807,2587.0,2586.9,0.7729]
[1748612214976,0.08310807,2587.0,2586.7,0.88]
[1748612215274,0.77293,2586.9,2586.8,5.534]
[1748612215481,0.7729,2586.9,2586.8,5.534]
[1748612215671,0.08310807,2587.0,2586.9,0.7729]
[1748612215873,0.08310807,2587.0,2586.9,1.653]
[1748612216065,0.08310807,2587.0,2586.9,6.653]
[1748612216267,0.77866845,2587.0,2586.9,5.8801]
[1748612216468,0.77866845,2587.0,2586.8,5.534]
[1748612216469,0.7729,2586.9,2586.8,5.534]
[1748612217177,0.00579845,2587.0,2586.8,5.534]
[1748612217378,0.00579845,2587.0,2586.9,0.7729]
[1748612217677,0.00579845,2587.0,2586.9,6.3059]
[1748612218072,0.77866845,2587.0,2586.9,5.533]
[1748612218380,0.00579845,2587.0,2586.9,5.533]
[1748612218578,0.00579845,2587.0,2586.9,6.3059]
[1748612218982,0.00579845,2587.0,2586.9,5.533]
[1748612219181,0.77868845,2587.0,2586.8,0.77291]
[1748612219478,0.00579845,2587.0,2586.9,6.3059]
[1748612219980,0.00579845,2587.0,2586.9,11.3059]
[1748612220173,0.00579845,2587.0,2586.9,6.3059]
[1748612220369,0.77866845,2587.0,2586.9,5.533]
[1748612220581,0.77293,2586.8,2586.7,3.2078]
[1748612220769,0.00579845,2587.0,2586.5,6.31080845]
[1748612220970,0.00579845,2587.0,2586.5,5.53779845]
[1748612221275,0.77299,2586.6,2586.5,5.53779845]
[1748612221577,0.77299,2586.6,2586.5,0.00579845]
[1748612221879,3.2078,2586.9,2586.8,0.77293]
[1748612222081,0.7729,2586.9,2586.8,3.2078]
[1748612222273,0.7729,2586.9,2586.8,5.532]
[1748612222675,0.77299,2586.6,2586.5,0.00579845]
[1748612222974,3.2078,2586.7,2586.5,0.00579845]
[1748612223278,3.2078,2586.7,2586.6,0.77299]
[1748612223581,0.00579845,2587.0,2586.9,0.7729]
[1748612223779,0.77868845,2587.0,2586.8,0.77292]
[1748612223977,0.77868845,2587.0,2586.9,0.7729]
[1748612224275,0.00579845,2587.0,2586.9,6.3049]
[1748612224480,0.77866845,2587.0,2586.9,5.532]
[1748612224876,0.00579845,2587.0,2586.9,9.5127]
[1748612225174,0.7727,2587.6,2586.9,14.5127]
[1748612225376,1.9314,2588.1,2586.9,14.5127]
[1748612225377,3.2078,2588.1,2587.5,3.2078]
[1748612225574,3.2078,2588.1,2587.9,0.77259]
[1748612225774,3.2078,2588.1,2587.6,5.532]
[1748612226179,0.77265,2587.8,2587.6,5.532]
[1748612226477,0.00579845,2588.1,2587.6,6.30468]
[1748612226781,0.77266,2587.7,2587.6,5.532]
[1748612227371,0.77275,2587.4,2587.3,5.531]
[1748612228482,0.77275,2587.5,2587.3,5.531]
[1748612228679,0.77272,2587.5,2587.4,0.77275]
[1748612228877,3.2078,2587.9,2587.3,8.7388]
[1748612229078,3.2078,2587.9,2587.6,0.77268]
[1748612229275,3.2078,2587.9,2587.3,9.51157]
[1748612229475,3.2078,2587.9,2587.3,8.7388]
[1748612229683,0.7726,2588.0,2587.9,0.7726]
[1748612229880,0.00579845,2588.1,2588.0,0.77257]
[1748612230282,0.77836845,2588.1,2587.9,6.30359]
[1748612230587,0.77257,2588.0,2587.9,5.531]
[1748612231881,0.77269,2587.7,2587.6,0.77268]
[1748612232080,0.77269,2587.7,2587.5,5.531]
[1748612232081,0.77269,2587.6,2587.5,5.531]
[1748612232385,0.77284,2587.1,2587.0,5.531]
[1748612232587,0.77282,2587.2,2587.1,0.77281]
[1748612232784,3.2078,2587.6,2587.0,5.531]
[1748612232987,0.77284,2587.1,2587.0,5.531]
[1748612233180,5.13972,2587.4,2587.0,5.531]
[1748612233389,0.77293,2586.8,2586.7,3.98074]
[1748612233579,0.77293,2586.8,2586.7,9.49074]
[1748612233783,3.2078,2587.1,2586.7,8.7178]
[1748612233985,3.2078,2587.1,2586.8,0.77293]
[1748612234280,0.77288,2587.0,2586.9,0.77287]
[1748612234481,3.8663,2587.4,2586.8,1.9323]
[1748612234682,3.2078,2587.4,2586.8,0.8803]
[1748612234980,3.2078,2587.9,2587.3,3.2078]
[1748612235179,0.77271,2587.6,2587.5,0.77272]
[1748612235375,3.2078,2587.9,2587.4,5.51]
[1748612235582,0.77272,2587.5,2587.4,5.51]
[1748612235886,3.2078,2587.6,2587.0,5.51]
[1748612236386,0.7728,2587.3,2587.1,0.77283]
[1748612236587,0.77276,2587.4,2587.3,0.77278]
[1748612236885,3.2078,2587.6,2587.0,5.51]
[1748612237086,0.77282,2587.2,2587.1,0.77282]
[1748612237385,3.2078,2587.6,2587.0,8.32287]
[1748612237684,3.2078,2587.6,2587.1,5.51]
[1748612237880,0.77278,2587.4,2587.3,0.77278]
[1748612238076,0.77281,2587.2,2587.1,5.51]
[1748612238281,0.77295,2586.8,2586.7,6.28296]
[1748612238481,0.77293,2586.9,2586.8,0.77293]
[1748612238681,3.2078,2587.3,2586.7,5.51]
[1748612238878,1.2844,2587.2,2586.8,0.77291]
[1748612239075,3.21645,2587.2,2586.7,5.51]
[1748612239279,0.77291,2586.9,2586.8,0.77293]
[1748612239475,1.2844,2587.2,2586.9,0.7729]
[1748612239884,0.7729,2586.9,2586.8,5.51]
[1748612240485,2.1053,2586.9,2586.8,5.51]
[1748612241777,1.3324,2586.9,2586.8,6.28293]
[1748612241985,4.5402,2587.3,2587.2,0.77281]
[1748612242287,3.2078,2587.7,2587.6,0.77269]
[1748612242488,3.2078,2588.0,2587.9,0.7726]
[1748612242987,0.00579845,2588.1,2588.0,0.77257]
[1748612243187,3.2078,2588.6,2588.5,0.77242]
[1748612243390,3.2078,2588.9,2588.5,5.511]
[1748612243586,0.77239,2588.6,2588.5,5.511]
[1748612243779,1.3164,2588.8,2588.5,5.511]
[1748612243980,1.3164,2588.8,2588.7,0.77237]
[1748612244792,1.3164,2588.8,2588.5,5.51679845]
[1748612245091,1.3164,2588.8,2588.7,0.77237]
[1748612245389,0.00579845,2589.0,2588.9,0.77231]
[1748612245893,0.00579845,2589.0,2588.6,4.0884]
[1748612246091,0.00579845,2589.0,2588.9,0.77231]
[1748612246290,0.00579845,2589.0,2588.9,3.98011]
[1748612246590,3.2078,2590.3,2590.2,0.77192]
[1748612246780,1.3488,2590.2,2590.0,0.77196]
[1748612247084,2.12072,2590.2,2590.1,5.51]
[1748612247386,0.77199,2590.0,2589.9,5.51579845]
[1748612247592,3.97977,2590.1,2589.9,5.51579845]
[1748612247890,0.77198,2590.0,2589.9,5.51579845]
[1748612248185,2.12078,2590.0,2589.9,5.51579845]
[1748612248400,1.93003,2589.9,2589.3,5.508]
[1748612248685,0.77216,2589.4,2589.3,5.508]
[1748612248888,3.97996,2589.4,2589.3,5.508]
[1748612249791,0.77222,2589.2,2589.1,0.00579845]
[1748612250493,0.77228,2589.0,2588.9,5.508]
[1748612250789,0.77238,2588.7,2588.5,5.507]
[1748612250979,1.2323,2588.9,2588.6,0.77239]
[1748612251184,2.00469,2588.6,2588.5,5.507]
[1748612251786,0.00579845,2588.8,2588.5,5.507]
[1748612251986,0.00579845,2588.8,2588.3,3.21359845]
[1748612251987,3.21359845,2588.8,2588.3,3.21359845]
[1748612252184,0.77245,2588.4,2588.3,5.51279845]
[1748612252395,3.2078,2588.5,2588.4,0.77245]
[1748612252585,0.77241,2588.6,2588.4,0.77245]
[1748612252790,0.77245,2588.4,2588.3,5.51279845]
[1748612253290,0.77245,2588.4,2588.3,0.00579845]
[1748612253492,2.11805,2588.4,2588.3,0.00579845]
[1748612253892,1.3456,2588.4,2588.3,0.00579845]
[1748612254096,1.3456,2588.4,2588.3,0.77827845]
[1748612254291,0.00579845,2588.8,2588.3,5.00579845]
[1748612254590,0.77245,2588.4,2588.3,0.00579845]
[1748612254785,4.5291,2588.7,2588.3,0.00579845]
[1748612254987,4.5291,2588.7,2588.6,0.77239]
[1748612255188,1.3213,2588.7,2588.4,0.77245]
[1748612255394,1.3213,2588.7,2588.3,0.00579845]
[1748612255593,1.3213,2588.7,2588.6,0.77239]
[1748612257289,0.00579845,2588.8,2588.7,0.77236]
[1748612257500,0.00579845,2588.8,2588.7,6.27936]
[1748612257888,0.00579845,2588.8,2588.7,11.27936]
[1748612258094,3.2078,2589.4,2588.9,1.9307]
[1748612258297,4.4987,2590.3,2589.5,1.93032]
[1748612258593,4.4987,2590.3,2589.8,1.9301]
[1748612258801,1.2655,2590.2,2590.1,0.77194]
[1748612258990,2.03742,2590.2,2590.1,5.507]
[1748612259190,1.2655,2590.2,2590.1,6.27895]
[1748612260395,0.00579845,2590.4,2590.3,0.77189]
[1748612260791,3.2078,2590.9,2590.3,0.77187]
[1748612261001,1.3392,2590.8,2590.4,0.77184]
[1748612261303,3.97965,2590.5,2590.2,0.7719]
[1748612261594,1.3392,2590.4,2590.3,0.77189]
[1748612261997,0.00382795,2590.6,2590.5,0.77183]
[1748612262994,0.00382795,2590.6,2590.5,6.16083]
[1748612263197,0.00382795,2590.6,2590.5,5.389]
[1748612263405,0.77562795,2590.6,2590.4,0.77186]
[1748612263597,1.3392,2590.5,2590.4,0.77186]
[1748612264091,1.3392,2590.5,2590.1,5.389]
[1748612264295,1.3392,2590.5,2590.4,0.77186]
[1748612264495,1.3392,2590.5,2590.3,0.77187]
[1748612264691,1.3392,2590.5,2590.1,5.389]
[1748612265099,1.3392,2590.5,2590.2,5.389]
[1748612265398,2.11104,2590.5,2590.3,0.77187]
[1748612265599,1.3392,2590.5,2590.4,0.77186]
[1748612266001,4.4987,2591.4,2591.3,0.77159]
[1748612266208,1.3358,2591.3,2591.2,0.7716]
[1748612266497,1.3358,2591.3,2590.5,4.752]
[1748612266693,0.77169,2591.0,2590.7,0.77174]
[1748612266895,1.3413,2590.9,2590.6,5.388]
[1748612267105,3.2078,2590.8,2590.6,6.15978]
[1748612267296,3.2078,2591.1,2590.2,3.2078]
[1748612267503,3.2078,2591.1,2590.5,3.2078]
[1748612267700,1.3413,2591.0,2590.5,3.2078]
[1748612267902,1.3413,2591.0,2590.3,5.388]
[1748612268104,0.77181,2590.6,2590.3,5.388]
[1748612268294,3.2078,2590.8,2590.4,1.92965]
[1748612268499,3.2078,2590.8,2590.7,0.77177]
[1748612268701,1.3413,2590.9,2590.4,0.8794]
[1748612269000,1.3413,2590.7,2590.6,0.7718]
[1748612269501,1.3413,2590.7,2590.3,5.388]
[1748612270202,0.77186,2590.4,2590.0,5.387]
[1748612270395,1.3093,2590.3,2589.9,0.00579845]
[1748612270595,0.77198,2590.0,2589.9,0.00579845]
[1748612271503,1.3093,2590.3,2590.2,0.77192]
[1748612271707,0.77172,2590.9,2590.7,0.77174]
[1748612271901,0.77174,2590.8,2590.6,0.77178]
[1748612272199,0.77177,2590.7,2590.4,5.388]
[1748612272398,3.2078,2591.0,2590.9,0.77171]
[1748612272598,3.2078,2591.0,2590.4,8.5958]
[1748612272805,0.77177,2590.8,2590.6,0.77178]
[1748612272999,0.77177,2590.8,2590.4,5.388]
[1748612273000,1.2293,2590.7,2590.4,5.388]
[1748612273398,1.2293,2590.7,2590.6,0.7718]
[1748612274803,1.2293,2590.7,2590.4,8.5958]
[1748612274804,2.00109,2590.7,2590.4,8.5958]
[1748612275011,1.2293,2590.7,2590.6,0.7718]
[1748612277908,3.2078,2591.7,2591.4,0.77156]
[1748612278211,0.77156,2591.4,2591.3,0.00579845]
[1748612278607,0.77152,2591.6,2591.4,0.77156]
[1748612278811,0.77152,2591.6,2591.3,0.00579845]
[1748612279111,0.77155,2591.5,2591.3,0.00579845]
[1748612279315,2.03225,2591.5,2591.3,0.77737845]
[1748612279505,1.2607,2591.5,2591.4,0.77156]
[1748612280203,1.2607,2591.5,2591.3,0.00579845]
[1748612280410,1.2607,2591.5,2591.4,0.77156]
[1748612280917,2.25776744,2593.8,2591.4,5.0]
[1748612281108,3.2078,2593.3,2592.7,3.2078]
[1748612281410,0.77105,2593.1,2592.8,0.77113]
[1748612281613,0.6453,2593.2,2592.7,3.21358693]
[1748612282207,3.2078,2594.0,2593.0,5.13547]
[1748612282417,3.2078,2594.0,2593.6,3.2078]
[1748612282606,1.92712,2593.9,2593.2,3.2078]
[1748612282808,0.72850694,2593.8,2593.3,5.386]
[1748612283015,0.77097,2593.4,2593.3,5.386]
[1748612283509,0.77096,2593.5,2593.3,5.386]
[1748612283703,0.72850694,2593.8,2593.3,6.15698]
[1748612283912,0.72850694,2593.8,2593.5,3.2078]
[1748612284103,0.77095,2593.5,2593.3,5.386]
[1748612284410,2.05267,2593.4,2593.3,5.386]
[1748612284621,1.2817,2593.4,2593.3,5.386]
[1748612284812,2.05267,2593.4,2593.3,5.386]
[1748612285009,1.2817,2593.4,2592.9,3.2078]
[1748612285209,0.77108,2593.0,2592.9,8.5928]
[1748612285511,0.77108,2593.1,2592.9,8.5928]
[1748612285707,2.08738,2593.0,2592.9,8.5928]
[1748612285908,1.3163,2593.0,2592.9,8.5928]
[1748612286208,1.3163,2593.4,2592.9,8.5928]
[1748612286407,0.771,2593.3,2593.2,3.2078]
[1748612286812,1.3163,2593.4,2592.9,8.5928]
[1748612286813,0.77108,2593.0,2592.9,8.5928]
[1748612287013,0.77108,2593.0,2592.9,8.5918]
[1748612287411,0.77108,2593.0,2592.9,3.2078]
[1748612287806,0.77111,2592.9,2592.8,5.384]
[1748612288009,1.3163,2593.2,2592.8,5.384]
[1748612288218,2.08732,2593.2,2593.1,3.2078]
[1748612288406,3.2078,2594.0,2593.1,3.2078]
[1748612288612,0.77091,2593.6,2593.5,3.2078]
[1748612289014,0.77091,2593.6,2592.8,1.92783]
[1748612289015,0.771,2593.3,2593.2,3.2078]
[1748612289614,0.771,2593.3,2593.2,8.5918]
[1748612290206,0.771,2593.3,2592.7,1.29648693]
[1748612290207,0.77108,2593.0,2592.9,3.2078]
[1748612290413,0.77114,2592.8,2592.7,0.00578693]
[1748612292919,7.06804,2592.8,2592.7,0.00578693]
[1748612293719,0.77114,2592.8,2592.7,0.00578693]
[1748612293915,1.2363,2592.9,2592.7,0.00578693]
[1748612293916,1.2363,2592.9,2592.8,0.77115]
[1748612294319,0.1919,2593.6,2593.5,0.77094]
[1748612294518,0.1919,2593.6,2593.5,3.97874]
[1748612295021,1.2862,2594.5,2593.5,8.2078]
[1748612295217,1.92614,2595.2,2594.5,0.77062]
[1748612295518,3.22411,2595.1,2594.5,0.77063]
[1748612295724,0.77079,2594.0,2593.9,3.2078]
[1748612295915,0.77079,2594.0,2591.9,0.45296]
[1748612295916,0.77081,2594.0,2593.6,8.4448]
[1748612296117,0.77085,2593.8,2593.6,8.4448]
[1748612296317,3.97865,2593.8,2593.7,6.93e-06]
[1748612297216,5.77085,2593.8,2593.7,6.93e-06]
[1748612297517,0.77085,2593.8,2593.7,6.93e-06]
[1748612298623,0.0057416,2594.0,2593.7,6.93e-06]
[1748612298818,1.2327,2593.9,2593.8,3.97865]
[1748612299518,0.0057416,2594.0,2593.9,0.77082]
[1748612299713,0.0057416,2594.0,2593.8,3.2078]
[1748612299714,0.77082,2593.9,2593.8,3.2078]
[1748612299923,0.0057416,2594.0,2593.8,3.2078]
[1748612300221,0.7765416,2594.0,2593.8,8.4448]
[1748612300417,1.2492,2593.9,2593.8,8.4448]
[1748612301211,2.02002,2593.9,2593.8,8.4448]
[1748612301622,2.02002,2593.9,2593.8,5.237]
[1748612302018,1.2492,2593.9,2593.8,8.4448]
[1748612302222,2.03759068,2593.9,2593.8,8.4448]
[1748612303018,2.03759068,2593.9,2593.8,5.237]
[1748612303414,0.78839068,2593.9,2593.8,5.237]
[1748612303617,2.10319068,2593.9,2593.8,5.237]
[1748612304018,0.77085,2593.8,2593.7,6.93e-06]
[1748612304222,2.08565,2593.8,2593.7,6.93e-06]
[1748612304926,0.01757068,2593.9,2593.7,6.93e-06]
[1748612305121,0.01757068,2593.9,2593.8,3.97865]
[1748612305429,0.01757068,2593.9,2593.8,9.21465]
[1748612305719,0.01757068,2593.9,2593.8,8.4438]
[1748612305920,0.78839068,2593.9,2593.8,8.4438]
[1748612306126,1.33237068,2593.9,2593.8,9.21465]
[1748612306520,0.01757068,2593.9,2593.8,9.21465]
[1748612307118,0.01757068,2593.9,2593.8,10.55295]
[1748612307520,0.78839068,2593.9,2593.8,8.4438]
[1748612307725,1.24987068,2593.9,2593.8,9.21465]
[1748612307921,0.1984416,2594.0,2593.9,0.77082]
[1748612308427,0.1984416,2594.0,2593.9,7.10912]
[1748612308627,3.2078,2595.3,2593.9,26.3893]
[1748612308823,0.77051,2595.0,2594.9,3.2078]
[1748612309331,1.2323,2595.0,2594.9,3.97833]
[1748612309530,2.0028,2595.0,2594.9,3.2078]
[1748612309731,0.77058,2594.7,2594.6,5.236]
[1748612310030,4.4401,2595.0,2594.5,3.2078]
[1748612310235,1.3457,2594.6,2594.5,3.2078]
[1748612310428,2.11631,2594.6,2594.5,3.2078]
[1748612310733,2.11631,2594.6,2594.5,3.97844]
[1748612311028,0.6565,2595.2,2594.7,0.77056]
[1748612311230,0.77059,2594.7,2594.5,3.2078]
[1748612311432,1.3457,2594.9,2594.5,3.2078]
[1748612311433,1.3457,2594.6,2594.5,3.2078]
[1748612311628,1.3457,2594.6,2593.8,3.2078]
[1748612311831,1.92677,2594.3,2593.8,3.2078]
[1748612312029,0.77081,2594.0,2593.8,3.97864]
[1748612312233,1.92675,2594.4,2593.8,3.2078]
[1748612312432,0.77069,2594.4,2593.9,1.92706]
[1748612312631,0.77073,2594.2,2594.1,3.2078]
[1748612312836,0.77071,2594.3,2594.1,3.2078]
[1748612313036,0.77061,2594.6,2594.4,0.77067]
[1748612313237,0.77061,2594.6,2594.4,0.77065]
[1748612313433,0.77068,2594.4,2594.3,0.7707]
[1748612313635,0.77066,2594.5,2594.3,0.7707]
[1748612313838,1.92635,2594.9,2594.1,4.5261]
[1748612314133,1.9265,2594.7,2594.1,3.2078]
[1748612314331,1.92662,2594.5,2594.1,3.2078]
[1748612314536,1.92659,2594.6,2594.1,3.97855]
[1748612314838,1.92662,2594.5,2594.1,0.77076]
[1748612315133,3.2078,2594.4,2593.8,3.2078]
[1748612315341,0.77075,2594.2,2594.1,0.77076]
[1748612315529,0.77065,2594.5,2594.1,3.2078]
[1748612315732,1.92635,2594.9,2594.1,3.2078]
[1748612316034,0.77065,2594.5,2594.4,0.77065]
[1748612316234,0.77065,2594.5,2594.4,0.77066]
[1748612316235,0.77066,2594.5,2594.4,0.77066]
[1748612316534,0.77073,2594.3,2594.2,0.77073]
[1748612316738,0.77073,2594.2,2594.1,3.2078]
[1748612317033,3.2078,2594.7,2594.1,3.2078]
[1748612317034,5.1343,2594.7,2594.1,3.2078]
[1748612317225,1.92638,2594.9,2594.1,3.2078]
[1748612317428,0.77064,2594.6,2594.5,0.77062]
[1748612317633,0.77064,2594.6,2594.5,0.77061]
[1748612317938,0.77066,2594.5,2594.4,0.77065]
[1748612318136,0.77067,2594.5,2594.4,0.77066]
[1748612318334,0.77067,2594.4,2594.1,3.2078]
[1748612318535,5.13431,2594.7,2594.1,3.2078]
[1748612318736,0.77065,2594.5,2594.4,0.77064]
[1748612319238,0.77071,2594.4,2594.3,0.77069]
[1748612319439,0.7707,2594.4,2594.3,0.77069]
[1748612319639,0.77072,2594.3,2594.2,0.77071]
[1748612319832,0.77066,2594.5,2594.4,0.77065]
[1748612320038,0.77063,2594.6,2594.5,0.77062]
[1748612320237,0.77064,2594.5,2594.4,9.21245]
[1748612320948,0.77064,2594.5,2594.4,8.4418]
[1748612321243,0.77067,2594.4,2594.3,0.77068]
[1748612321447,0.77067,2594.4,2594.3,6.00468]
[1748612322042,0.77063,2594.6,2594.5,0.7706]
[1748612322644,0.77058,2594.8,2594.7,0.77055]
[1748612322847,0.77061,2594.6,2594.5,3.2078]
[1748612323340,0.77067,2594.5,2594.4,0.77064]
[1748612323742,0.77067,2594.4,2594.3,5.234]
[1748612323939,1.92647,2594.7,2594.2,3.2078]
[1748612324155,0.77069,2594.4,2594.3,5.93566]
[1748612324449,1.92631,2594.9,2594.3,7.09173]
[1748612324749,0.77061,2594.6,2594.5,3.2078]
[1748612324949,0.77064,2594.5,2594.4,0.77066]
[1748612325151,0.77066,2594.5,2594.4,0.77064]
[1748612325345,0.77067,2594.5,2594.4,0.77065]
[1748612325649,0.77066,2594.5,2594.4,0.77065]
[1748612325857,0.77061,2594.7,2594.6,0.77059]
[1748612326149,0.77067,2594.4,2594.3,8.3728]
[1748612326453,0.77067,2594.4,2594.3,9.14348]
[1748612326647,0.96336,2594.5,2594.4,0.77067]
[1748612327250,0.1927,2594.5,2594.4,0.77067]
[1748612327655,0.96334,2594.5,2594.4,0.77067]
[1748612327853,0.1927,2594.5,2594.4,0.77067]
[1748612328852,0.1927,2594.5,2594.4,2.01647]
[1748612329349,0.1927,2594.5,2594.4,0.77067]
[1748612329753,1.5096,2594.5,2594.4,5.93567]
[1748612329952,1.5096,2594.5,2594.3,3.97848]